bitfinex-derivatives/quotes_BTCF0:USTF0_20241006
["timestamp","ask_amount","ask_price","bid_price","bid_amount"]
[1728188634646,0.85983113,61977.0,61976.0,0.0214]
[1728188635143,0.82845816,61977.0,61976.0,0.0214]
[1728188635445,0.788943,61977.0,61976.0,0.0214]
[1728188636635,0.064545,61975.0,61974.0,0.08072689]
[1728188636854,0.064545,61975.0,61973.0,0.08072689]
[1728188636855,0.064546,61974.0,61973.0,0.08072689]
[1728188637043,0.064546,61974.0,61972.0,0.0333]
[1728188637044,0.064547,61973.0,61972.0,0.0333]
[1728188637540,0.064947,61973.0,61972.0,0.0333]
[1728188638045,0.786547,61973.0,61972.0,0.0333]
[1728188638539,0.787547,61973.0,61972.0,0.0403]
[1728188639842,0.788547,61973.0,61972.0,0.0403]
[1728188640242,0.066947,61973.0,61972.0,0.0403]
[1728188640443,0.788547,61973.0,61972.0,0.007]
[1728188642353,0.8592678,61973.0,61972.0,0.007]
[1728188642653,0.16623031,61973.0,61972.0,0.007]
[1728188642858,0.88783031,61973.0,61972.0,0.007]
[1728188644649,0.88780089,61973.0,61972.0,0.007]
[1728188648352,0.16620089,61973.0,61972.0,0.007]
[1728188648560,0.88780089,61973.0,61972.0,0.007]
[1728188649560,0.88780091,61973.0,61972.0,0.007]
[1728188650248,0.81710951,61973.0,61972.0,0.007]
[1728188653052,0.09550951,61973.0,61972.0,0.007]
[1728188653461,0.81710951,61973.0,61972.0,0.007]
[1728188653961,0.81710951,61973.0,61972.0,0.05537983]
[1728188654258,0.09550951,61973.0,61972.0,0.05537983]
[1728188654457,0.81710951,61973.0,61972.0,0.007]
[1728188657860,0.09550951,61973.0,61972.0,0.007]
[1728188658158,0.81710951,61973.0,61972.0,0.007]
[1728188660455,0.81710951,61973.0,61970.0,0.06493563]
[1728188660456,0.75256251,61973.0,61970.0,0.06493563]
[1728188660769,0.174549,61971.0,61970.0,0.06493563]
[1728188660961,0.174949,61971.0,61970.0,0.06493563]
[1728188661566,0.896549,61971.0,61970.0,0.06493563]
[1728188662266,0.897549,61971.0,61970.0,0.06493563]
[1728188662466,0.175949,61971.0,61970.0,0.06493563]
[1728188662670,0.897549,61971.0,61970.0,0.06493563]
[1728188663362,0.897549,61971.0,61970.0,0.0004]
[1728188663771,0.898549,61971.0,61970.0,0.0004]
[1728188664465,0.176949,61971.0,61970.0,0.0004]
[1728188664667,0.898549,61971.0,61970.0,0.0004]
[1728188665176,0.176949,61971.0,61970.0,0.0004]
[1728188665371,0.96924089,61971.0,61970.0,0.0004]
[1728188668275,1.01877531,61971.0,61970.0,0.0004]
[1728188669371,1.01877918,61971.0,61970.0,0.0004]
[1728188670970,0.29717918,61971.0,61970.0,0.0004]
[1728188671181,1.01877918,61971.0,61970.0,0.0004]
[1728188672468,0.898549,61971.0,61970.0,0.0004]
[1728188675467,0.898549,61971.0,61970.0,0.19406313]
[1728188676875,0.537749,61971.0,61970.0,0.19402352]
[1728188677466,0.537749,61971.0,61970.0,0.0004]
[1728188677671,0.537749,61971.0,61970.0,0.19402357]
[1728188678673,0.537749,61971.0,61970.0,0.19405815]
[1728188679373,0.537749,61971.0,61970.0,0.06498516]
[1728188680379,0.176949,61971.0,61970.0,0.06498516]
[1728188680673,0.537749,61971.0,61970.0,0.06498516]
[1728188683075,0.898549,61971.0,61970.0,0.06498516]
[1728188683479,0.176949,61971.0,61970.0,0.06498516]
[1728188683684,0.898549,61971.0,61970.0,0.06498516]
[1728188686578,0.898549,61971.0,61970.0,0.0004]
[1728188687379,1.07665802,61971.0,61970.0,0.0004]
[1728188687786,1.25418629,61971.0,61970.0,0.0004]
[1728188688082,1.07665802,61971.0,61970.0,0.0004]
[1728188689385,1.07665911,61971.0,61970.0,0.0004]
[1728188690085,1.25418452,61971.0,61970.0,0.0004]
[1728188690680,1.07665911,61971.0,61970.0,0.0004]
[1728188691383,0.35505911,61971.0,61970.0,0.0004]
[1728188691583,1.01877784,61971.0,61970.0,0.0004]
[1728188691885,1.07665911,61971.0,61970.0,0.0004]
[1728188693277,0.35505911,61971.0,61970.0,0.0004]
[1728188693478,0.29717784,61971.0,61970.0,0.0004]
[1728188693678,1.01877784,61971.0,61970.0,0.0004]
[1728188693881,1.07665911,61971.0,61970.0,0.0004]
[1728188694482,0.176949,61971.0,61970.0,0.0004]
[1728188694691,0.898549,61971.0,61970.0,0.0004]
[1728188695387,0.176949,61971.0,61970.0,0.0004]
[1728188695784,0.898549,61971.0,61970.0,0.0004]
[1728188697179,0.176949,61971.0,61970.0,0.0004]
[1728188697376,0.898549,61971.0,61970.0,0.0004]
[1728188698278,0.788549,61971.0,61970.0,0.0004]
[1728188698486,0.898549,61971.0,61970.0,0.0004]
[1728188701398,0.176949,61971.0,61970.0,0.0004]
[1728188701591,0.898549,61971.0,61970.0,0.0004]
[1728188702191,0.176949,61971.0,61970.0,0.0004]
[1728188702389,1.0187774,61971.0,61970.0,0.0004]
[1728188702793,0.96924212,61971.0,61970.0,0.0004]
[1728188703002,1.0187774,61971.0,61970.0,0.0004]
[1728188705688,0.2971774,61971.0,61970.0,0.0004]
[1728188705897,1.0187774,61971.0,61970.0,0.0004]
[1728188707683,1.0187783,61971.0,61970.0,0.0004]
[1728188707983,0.2971783,61971.0,61970.0,0.0004]
[1728188708196,1.0187783,61971.0,61970.0,0.0004]
[1728188709499,0.898549,61971.0,61970.0,0.0004]
[1728188709887,0.176949,61971.0,61970.0,0.0004]
[1728188710097,0.898549,61971.0,61970.0,0.0004]
[1728188713292,0.176949,61971.0,61970.0,0.0004]
[1728188713695,0.898549,61971.0,61970.0,0.0004]
[1728188713897,0.176949,61971.0,61970.0,0.0004]
[1728188714895,0.898549,61971.0,61970.0,0.0004]
[1728188715097,0.176949,61971.0,61970.0,0.0004]
[1728188715594,0.898549,61971.0,61970.0,0.0004]
[1728188715900,0.176949,61971.0,61970.0,0.0004]
[1728188716110,0.898549,61971.0,61970.0,0.0004]
[1728188717706,0.35505961,61971.0,61970.0,0.0004]
[1728188717891,1.07665961,61971.0,61970.0,0.0004]
[1728188718199,0.35505961,61971.0,61970.0,0.0004]
[1728188718595,1.07665961,61971.0,61970.0,0.0004]
[1728188719095,1.25420026,61971.0,61970.0,0.0004]
[1728188719994,0.53260026,61971.0,61970.0,0.0004]
[1728188720193,1.19631847,61971.0,61970.0,0.0004]
[1728188720395,1.25420026,61971.0,61970.0,0.0004]
[1728188720594,0.53260026,61971.0,61970.0,0.0004]
[1728188720898,1.25420026,61971.0,61970.0,0.0004]
[1728188721091,1.25420282,61971.0,61970.0,0.0004]
[1728188721289,0.53260282,61971.0,61970.0,0.0004]
[1728188721492,1.07665961,61971.0,61970.0,0.0004]
[1728188721695,0.35505961,61971.0,61970.0,0.0004]
[1728188721888,0.29717782,61971.0,61970.0,0.0004]
[1728188722099,1.19632099,61971.0,61970.0,0.0004]
[1728188722410,1.07665961,61971.0,61970.0,0.0004]
[1728188722702,0.35505961,61971.0,61970.0,0.0004]
[1728188722901,1.07665961,61971.0,61970.0,0.0004]
[1728188723202,0.35505961,61971.0,61970.0,0.0004]
[1728188723399,1.07665961,61971.0,61970.0,0.0004]
[1728188723797,0.35505961,61971.0,61970.0,0.0004]
[1728188723997,1.07665961,61971.0,61970.0,0.0004]
[1728188724708,0.898549,61971.0,61970.0,0.0004]
[1728188725004,0.176949,61971.0,61970.0,0.0004]
[1728188725205,0.898549,61971.0,61970.0,0.0004]
[1728188727005,0.176949,61971.0,61970.0,0.0004]
[1728188727208,0.898549,61971.0,61970.0,0.0004]
[1728188727894,0.176949,61971.0,61970.0,0.0004]
[1728188728300,0.898549,61971.0,61970.0,0.0004]
[1728188728910,0.176949,61971.0,61970.0,0.0004]
[1728188729502,0.898549,61971.0,61970.0,0.0004]
[1728188730004,0.176949,61971.0,61970.0,0.0004]
[1728188730203,0.898549,61971.0,61970.0,0.0004]
[1728188731116,0.176949,61971.0,61970.0,0.0004]
[1728188731309,0.898549,61971.0,61970.0,0.0004]
[1728188731802,0.176949,61971.0,61970.0,0.0004]
[1728188732109,0.898549,61971.0,61970.0,0.0004]
[1728188732717,1.07665961,61971.0,61970.0,0.0004]
[1728188733006,0.35505961,61971.0,61970.0,0.0004]
[1728188733212,1.01877782,61971.0,61970.0,0.0004]
[1728188733410,1.07665961,61971.0,61970.0,0.0004]
[1728188737219,0.35505961,61971.0,61970.0,0.0004]
[1728188737407,1.01877784,61971.0,61970.0,0.0004]
[1728188737710,1.07665963,61971.0,61970.0,0.0004]
[1728188738119,0.35505963,61971.0,61970.0,0.0004]
[1728188738414,1.01877784,61971.0,61970.0,0.0004]
[1728188738619,1.07665963,61971.0,61970.0,0.0004]
[1728188738916,0.35505963,61971.0,61970.0,0.0004]
[1728188739110,1.01877784,61971.0,61970.0,0.0004]
[1728188739309,0.35505963,61971.0,61970.0,0.0004]
[1728188739613,0.176949,61971.0,61970.0,0.0004]
[1728188740313,0.898549,61971.0,61970.0,0.0004]
[1728188742612,0.176949,61971.0,61970.0,0.0004]
[1728188742811,0.898549,61971.0,61970.0,0.0004]
[1728188743414,0.176949,61971.0,61970.0,0.0004]
[1728188743610,0.898549,61971.0,61970.0,0.0004]
[1728188743817,0.176949,61971.0,61970.0,0.0004]
[1728188744016,0.898549,61971.0,61970.0,0.0004]
[1728188744215,0.176949,61971.0,61970.0,0.0004]
[1728188744415,0.898549,61971.0,61970.0,0.0004]
[1728188744616,0.176949,61971.0,61970.0,0.0004]
[1728188745114,0.898549,61971.0,61970.0,0.0004]
[1728188746923,0.176949,61971.0,61970.0,0.0004]
[1728188747113,0.898549,61971.0,61970.0,0.0004]
[1728188747924,0.176949,61971.0,61970.0,0.0004]
[1728188748113,0.898549,61971.0,61970.0,0.0004]
[1728188750518,0.176949,61971.0,61970.0,0.0004]
[1728188750715,0.898549,61971.0,61970.0,0.0004]
[1728188750920,0.176949,61971.0,61970.0,0.0004]
[1728188751118,0.898549,61971.0,61970.0,0.0004]
[1728188752829,0.176949,61971.0,61970.0,0.0004]
[1728188753018,0.898549,61971.0,61970.0,0.0004]
[1728188753724,0.176949,61971.0,61970.0,0.0004]
[1728188754031,0.898549,61971.0,61970.0,0.0004]
[1728188754231,0.176949,61971.0,61970.0,0.0004]
[1728188754420,0.898549,61971.0,61970.0,0.0004]
[1728188754615,1.07665966,61971.0,61970.0,0.0004]
[1728188754827,0.35505966,61971.0,61970.0,0.0004]
[1728188755218,0.29717786,61971.0,61970.0,0.0004]
[1728188755622,1.01877786,61971.0,61970.0,0.0004]
[1728188755922,0.35505966,61971.0,61970.0,0.0004]
[1728188756123,1.01877786,61971.0,61970.0,0.0004]
[1728188756327,1.25421871,61971.0,61970.0,0.0004]
[1728188756528,0.53261871,61971.0,61970.0,0.0004]
[1728188756725,1.25421871,61971.0,61970.0,0.0004]
[1728188756945,0.53261871,61971.0,61970.0,0.0004]
[1728188757133,1.01877786,61971.0,61970.0,0.0004]
[1728188757325,0.35505966,61971.0,61970.0,0.0004]
[1728188757628,1.01877786,61971.0,61970.0,0.0004]
[1728188757829,1.07665966,61971.0,61970.0,0.0004]
[1728188758625,0.35505966,61971.0,61970.0,0.0004]
[1728188758826,1.07665966,61971.0,61970.0,0.0004]
[1728188759219,0.35505966,61971.0,61970.0,0.0004]
[1728188759419,1.01877786,61971.0,61970.0,0.0004]
[1728188759720,1.07665966,61971.0,61970.0,0.0004]
[1728188761131,1.07665977,61971.0,61970.0,0.0004]
[1728188761826,0.35505977,61971.0,61970.0,0.0004]
[1728188762027,1.01877797,61971.0,61970.0,0.0004]
[1728188762330,1.07665977,61971.0,61970.0,0.0004]
[1728188762723,0.176949,61971.0,61970.0,0.0004]
[1728188762925,0.898549,61971.0,61970.0,0.0004]
[1728188763829,0.176949,61971.0,61970.0,0.0004]
[1728188764229,0.898549,61971.0,61970.0,0.0004]
[1728188764734,0.176949,61971.0,61970.0,0.0004]
[1728188765336,0.898549,61971.0,61970.0,0.0004]
[1728188766939,0.176949,61971.0,61970.0,0.0004]
[1728188767234,0.898549,61971.0,61970.0,0.0004]
[1728188768038,0.176949,61971.0,61970.0,0.0004]
[1728188768635,0.898549,61971.0,61970.0,0.0004]
[1728188769737,0.176949,61971.0,61970.0,0.0004]
[1728188769944,0.898549,61971.0,61970.0,0.0004]
[1728188770138,0.176949,61971.0,61970.0,0.0004]
[1728188770338,0.898549,61971.0,61970.0,0.0004]
[1728188771428,0.176949,61971.0,61970.0,0.0004]
[1728188771632,0.898549,61971.0,61970.0,0.0004]
[1728188773343,0.176949,61971.0,61970.0,0.0004]
[1728188774041,0.898549,61971.0,61970.0,0.0004]
[1728188774340,0.176949,61971.0,61970.0,0.0004]
[1728188774540,0.898549,61971.0,61970.0,0.0004]
[1728188774744,0.176949,61971.0,61970.0,0.0004]
[1728188775138,0.898549,61971.0,61970.0,0.0004]
[1728188776935,0.176949,61971.0,61970.0,0.0004]
[1728188777134,0.788549,61971.0,61970.0,0.0004]
[1728188777334,0.898549,61971.0,61970.0,0.033]
[1728188777739,1.0188793,61971.0,61970.0,0.033]
[1728188780350,1.01884166,61971.0,61970.0,0.033]
[1728188780844,0.29724166,61971.0,61970.0,0.033]
[1728188781039,0.65804166,61971.0,61970.0,0.033]
[1728188784843,0.537749,61971.0,61970.0,0.033]
[1728188785342,0.537749,61971.0,61970.0,0.09755036]
[1728188785742,0.537749,61971.0,61970.0,0.033]
[1728188787753,0.898549,61971.0,61970.0,0.033]
[1728188790346,0.176949,61971.0,61970.0,0.033]
[1728188790551,0.898549,61971.0,61970.0,0.033]
[1728188791249,0.898549,61971.0,61970.0,0.0004]
[1728188792756,1.07665862,61971.0,61970.0,0.0004]
[1728188794846,0.95643046,61971.0,61970.0,0.0004]
[1728188795045,1.07665862,61971.0,61970.0,0.0004]
[1728188797555,0.35505862,61971.0,61970.0,0.0004]
[1728188797741,1.07665862,61971.0,61970.0,0.0004]
[1728188798446,0.35505862,61971.0,61970.0,0.0004]
[1728188798646,1.01877716,61971.0,61970.0,0.0004]
[1728188798857,1.07665862,61971.0,61970.0,0.0004]
[1728188799745,0.898549,61971.0,61970.0,0.0004]
[1728188802051,0.176949,61971.0,61970.0,0.0004]
[1728188802350,0.898549,61971.0,61970.0,0.0004]
[1728188804745,0.176949,61971.0,61970.0,0.0004]
[1728188804949,0.898549,61971.0,61970.0,0.0004]
[1728188807748,1.01877685,61971.0,61970.0,0.0004]
[1728188807963,0.29717685,61971.0,61970.0,0.0004]
[1728188808266,1.01877685,61971.0,61970.0,0.0004]
[1728188808650,0.29717685,61971.0,61970.0,0.0004]
[1728188808851,1.01877685,61971.0,61970.0,0.0004]
[1728188809059,0.44238576,61971.0,61970.0,0.0004]
[1728188809249,1.01877685,61971.0,61970.0,0.0004]
[1728188809455,0.29717685,61971.0,61970.0,0.0004]
[1728188809759,1.01877684,61971.0,61970.0,0.0004]
[1728188810651,0.29717684,61971.0,61970.0,0.0004]
[1728188810848,1.01877684,61971.0,61970.0,0.0004]
[1728188811261,1.16398575,61971.0,61970.0,0.0004]
[1728188811462,0.44238575,61971.0,61970.0,0.0004]
[1728188811659,1.16398575,61971.0,61970.0,0.0004]
[1728188811858,0.44238575,61971.0,61970.0,0.0004]
[1728188812059,1.16398575,61971.0,61970.0,0.0004]
[1728188813761,1.01877684,61971.0,61970.0,0.0004]
[1728188814454,0.29717684,61971.0,61970.0,0.0004]
[1728188814650,1.01877684,61971.0,61970.0,0.0004]
[1728188814856,0.898549,61971.0,61970.0,0.0004]
[1728188815866,0.176949,61971.0,61970.0,0.0004]
[1728188816073,0.898549,61971.0,61970.0,0.0004]
[1728188816462,0.176949,61971.0,61970.0,0.0004]
[1728188816770,0.898549,61971.0,61970.0,0.0004]
[1728188817562,0.176949,61971.0,61970.0,0.0004]
[1728188818467,0.898549,61971.0,61970.0,0.0004]
[1728188819063,0.176949,61971.0,61970.0,0.0004]
[1728188819567,0.898549,61971.0,61970.0,0.0004]
[1728188822571,0.176949,61971.0,61970.0,0.0004]
[1728188822768,1.01877672,61971.0,61970.0,0.0004]
[1728188823073,1.07665797,61971.0,61970.0,0.0004]
[1728188823485,0.35505797,61971.0,61970.0,0.0004]
[1728188823680,1.01877672,61971.0,61970.0,0.0004]
[1728188823867,1.07665797,61971.0,61970.0,0.0004]
[1728188824069,0.35505797,61971.0,61970.0,0.0004]
[1728188824569,1.07665797,61971.0,61970.0,0.0004]
[1728188824773,0.35505797,61971.0,61970.0,0.0004]
[1728188824973,1.07665797,61971.0,61970.0,0.0004]
[1728188825173,0.35505797,61971.0,61970.0,0.0004]
[1728188825364,0.29717672,61971.0,61970.0,0.0004]
[1728188825572,1.01877672,61971.0,61970.0,0.0004]
[1728188825771,1.07665797,61971.0,61970.0,0.0004]
[1728188825978,0.35505797,61971.0,61970.0,0.0004]
[1728188826181,1.01877672,61971.0,61970.0,0.0004]
[1728188826381,1.07665797,61971.0,61970.0,0.0004]
[1728188826578,0.35505797,61971.0,61970.0,0.0004]
[1728188826877,1.01877672,61971.0,61970.0,0.0004]
[1728188827178,0.35505797,61971.0,61970.0,0.0004]
[1728188827374,1.01877672,61971.0,61970.0,0.0004]
[1728188827576,1.07665797,61971.0,61970.0,0.0004]
[1728188828163,1.03713848,61971.0,61970.0,0.0004]
[1728188828373,1.07665798,61971.0,61970.0,0.0004]
[1728188829478,0.35505798,61971.0,61970.0,0.0004]
[1728188829670,1.07665798,61971.0,61970.0,0.0004]
[1728188829981,0.898549,61971.0,61970.0,0.0004]
[1728188831776,0.176949,61971.0,61970.0,0.0004]
[1728188831991,0.898549,61971.0,61970.0,0.0004]
[1728188833384,0.176949,61971.0,61970.0,0.0004]
[1728188833980,0.898549,61971.0,61970.0,0.0004]
[1728188834583,0.176949,61971.0,61970.0,0.0004]
[1728188834985,0.898549,61971.0,61970.0,0.0004]
[1728188835187,0.176949,61971.0,61970.0,0.0004]
[1728188835383,0.898549,61971.0,61970.0,0.0004]
[1728188835784,0.176949,61971.0,61970.0,0.0004]
[1728188836287,0.898549,61971.0,61970.0,0.0004]
[1728188837790,0.92972224,61971.0,61970.0,0.0004]
[1728188837990,0.20812223,61971.0,61970.0,0.0004]
[1728188838484,0.92972223,61971.0,61970.0,0.0004]
[1728188838692,0.20812223,61971.0,61970.0,0.0004]
[1728188839084,0.92972223,61971.0,61970.0,0.0004]
[1728188840193,0.20812223,61971.0,61970.0,0.0004]
[1728188840393,0.92972223,61971.0,61970.0,0.0004]
[1728188840896,0.898549,61971.0,61970.0,0.0004]
[1728188842199,0.176949,61971.0,61970.0,0.0004]
[1728188842497,0.898549,61971.0,61970.0,0.0004]
[1728188844896,1.01877675,61971.0,61970.0,0.0004]
[1728188847795,1.01877625,61971.0,61970.0,0.0004]
[1728188848091,0.29717625,61971.0,61970.0,0.0004]
[1728188848296,1.01877625,61971.0,61970.0,0.0004]
[1728188848598,1.07665728,61971.0,61970.0,0.0004]
[1728188848982,0.96924145,61971.0,61970.0,0.0004]
[1728188849699,0.24764145,61971.0,61970.0,0.0004]
[1728188850391,0.96924145,61971.0,61970.0,0.0004]
[1728188850899,0.24764145,61971.0,61970.0,0.0004]
[1728188851096,0.96924145,61971.0,61970.0,0.0004]
[1728188851891,0.24764145,61971.0,61970.0,0.0004]
[1728188852288,0.96924145,61971.0,61970.0,0.0004]
[1728188852892,0.898549,61971.0,61970.0,0.0004]
[1728188855001,0.176949,61971.0,61970.0,0.0004]
[1728188855190,0.898549,61971.0,61970.0,0.0004]
[1728188860610,0.898549,61971.0,61970.0,0.0488431]
[1728188861102,0.176949,61971.0,61970.0,0.0488431]
[1728188861303,0.898549,61971.0,61970.0,0.0488431]
[1728188861602,0.176949,61971.0,61970.0,0.0488431]
[1728188861804,0.898549,61971.0,61970.0,0.0488431]
[1728188862015,0.176949,61971.0,61970.0,0.0488431]
[1728188862213,0.898549,61971.0,61970.0,0.0488431]
[1728188862419,0.898549,61971.0,61970.0,0.0004]
[1728188867722,0.176949,61971.0,61970.0,0.0004]
[1728188867925,1.01877628,61971.0,61970.0,0.0004]
[1728188868128,1.25422761,61971.0,61970.0,0.0004]
[1728188868320,0.53262761,61971.0,61970.0,0.0004]
[1728188868526,1.19634657,61971.0,61970.0,0.0004]
[1728188868719,1.25422761,61971.0,61970.0,0.0004]
[1728188870626,1.14422761,61971.0,61970.0,0.0004]
[1728188870823,1.25422761,61971.0,61970.0,0.0004]
[1728188871028,0.53262761,61971.0,61970.0,0.0004]
[1728188871228,1.19634657,61971.0,61970.0,0.0004]
[1728188871530,1.25422761,61971.0,61970.0,0.0004]
[1728188872438,0.53262761,61971.0,61970.0,0.0004]
[1728188872621,1.25422761,61971.0,61970.0,0.0004]
[1728188873322,0.35505732,61971.0,61970.0,0.0004]
[1728188873527,1.01877628,61971.0,61970.0,0.0004]
[1728188873728,1.07665732,61971.0,61970.0,0.0004]
[1728188874127,1.25417144,61971.0,61970.0,0.0004]
[1728188874429,1.07665732,61971.0,61970.0,0.0004]
[1728188874628,0.35505732,61971.0,61970.0,0.0004]
[1728188874835,1.07665732,61971.0,61970.0,0.0004]
[1728188875032,0.898549,61971.0,61970.0,0.0488431]
[1728188875534,0.176949,61971.0,61970.0,0.0488431]
[1728188875728,0.898549,61971.0,61970.0,0.0488431]
[1728188876930,0.176949,61971.0,61970.0,0.0488431]
[1728188877127,0.898549,61971.0,61970.0,0.0488431]
[1728188882937,0.898549,61971.0,61970.0,0.0004]
[1728188882938,1.07665734,61971.0,61970.0,0.0004]
[1728188884046,0.35505734,61971.0,61970.0,0.0004]
[1728188884339,1.01877629,61971.0,61970.0,0.0004]
[1728188884643,1.07665734,61971.0,61970.0,0.0004]
[1728188886047,1.03713799,61971.0,61970.0,0.0004]
[1728188886236,1.07665734,61971.0,61970.0,0.0004]
[1728188890036,0.898549,61971.0,61970.0,0.0004]
[1728188893535,0.176949,61971.0,61970.0,0.0004]
[1728188893731,0.898549,61971.0,61970.0,0.0004]
[1728188894835,0.898549,61971.0,61970.0,0.19426854]
[1728188895139,0.898549,61971.0,61970.0,0.11353755]
[1728188896944,0.724,61971.0,61970.0,1.19765755]
[1728188897142,0.75517033,61971.0,61970.0,1.08452]
[1728188898745,0.86517033,61971.0,61970.0,1.08452]
[1728188901255,0.86517033,61971.0,61970.0,0.48452]
[1728188902246,0.50437033,61971.0,61970.0,0.48452]
[1728188902948,0.50437033,61971.0,61970.0,0.0004]
[1728188903251,0.50437033,61971.0,61970.0,0.48452]
[1728188903447,0.50437033,61971.0,61970.0,0.0004]
[1728188903645,0.50437033,61971.0,61970.0,0.48452]
[1728188904148,0.50437033,61971.0,61970.0,0.0004]
[1728188904347,0.54388593,61971.0,61970.0,0.0004]
[1728188904554,0.60843493,61971.0,61970.0,0.0004]
[1728188905041,0.537749,61971.0,61970.0,0.0004]
[1728188907942,0.537749,61971.0,61970.0,0.04878893]
[1728188908137,0.176949,61971.0,61970.0,0.04878893]
[1728188908336,0.537749,61971.0,61970.0,0.04878893]
[1728188909242,0.537749,61971.0,61970.0,0.0004]
[1728188911051,0.537749,61971.0,61970.0,0.04878978]
[1728188912046,0.65796638,61971.0,61970.0,0.0004]
[1728188913256,0.60843564,61971.0,61970.0,0.0004]
[1728188920050,0.537749,61971.0,61970.0,0.0004]
[1728188920249,0.537749,61971.0,61970.0,0.04878978]
[1728188920661,0.537749,61971.0,61970.0,0.0004]
[1728188920861,0.537749,61971.0,61970.0,0.04878978]
[1728188921061,0.537749,61971.0,61970.0,0.0004]
[1728188921452,0.537749,61971.0,61970.0,0.04878978]
[1728188921662,0.537749,61971.0,61970.0,0.0004]
[1728188923858,0.176949,61971.0,61970.0,0.0004]
[1728188924456,0.537749,61971.0,61970.0,0.0004]
[1728188924756,0.427749,61971.0,61970.0,0.0004]
[1728188925056,0.537749,61971.0,61970.0,0.0004]
[1728188935265,0.54797501,61971.0,61970.0,0.0004]
[1728188935463,0.65797501,61971.0,61970.0,0.0004]
[1728188935859,0.29717501,61971.0,61970.0,0.0004]
[1728188936069,0.65797501,61971.0,61970.0,0.0004]
[1728188936463,0.81924478,61971.0,61970.0,0.0004]
[1728188940173,0.8192422,61971.0,61970.0,0.0004]
[1728188941878,0.65797243,61971.0,61970.0,0.0004]
[1728188942172,0.69901877,61971.0,61970.0,0.0004]
[1728188942380,0.537749,61971.0,61970.0,0.0004]
[1728188947367,0.176949,61971.0,61970.0,0.0004]
[1728188947576,0.898549,61971.0,61970.0,0.0004]
[1728188948078,0.176949,61971.0,61970.0,0.0004]
[1728188948280,0.898549,61971.0,61970.0,0.0004]
[1728188949674,0.176949,61971.0,61970.0,0.0004]
[1728188949876,0.898549,61971.0,61970.0,0.0004]
[1728188950276,0.9692394,61971.0,61970.0,0.0004]
[1728188950481,0.2476394,61971.0,61970.0,0.0004]
[1728188951179,0.9692394,61971.0,61970.0,0.0004]
[1728188951485,0.92972121,61971.0,61970.0,0.0004]
[1728188953885,0.20812121,61971.0,61970.0,0.0004]
[1728188954077,0.92972121,61971.0,61970.0,0.0004]
[1728188957183,0.898549,61971.0,61970.0,0.0004]
[1728188957689,0.176949,61971.0,61970.0,0.0004]
[1728188957883,0.898549,61971.0,61970.0,0.0004]
[1728188958686,0.176949,61971.0,61970.0,0.0004]
[1728188959386,0.898549,61971.0,61970.0,0.0004]
[1728188959589,0.176949,61971.0,61970.0,0.0004]
[1728188959785,0.898549,61971.0,61970.0,0.0004]
[1728188960389,0.176949,61971.0,61970.0,0.0004]
[1728188960590,0.898549,61971.0,61970.0,0.0004]
[1728188960887,0.176949,61971.0,61970.0,0.0004]
[1728188961075,0.898549,61971.0,61970.0,0.0004]
[1728188961993,0.176949,61971.0,61970.0,0.0004]
[1728188962287,0.898549,61971.0,61970.0,0.0004]
[1728188962785,0.176949,61971.0,61970.0,0.0004]
[1728188963092,0.898549,61971.0,61970.0,0.0004]
[1728188963591,0.176949,61971.0,61970.0,0.0004]
[1728188963783,0.898549,61971.0,61970.0,0.0004]
[1728188964486,0.898549,61971.0,61970.0,0.06494735]
[1728188964889,0.898549,61971.0,61970.0,0.0004]
[1728188965894,0.176949,61971.0,61970.0,0.0004]
[1728188966094,0.898549,61971.0,61970.0,0.0004]
[1728188972284,1.07665826,61971.0,61970.0,0.0004]
[1728188975901,0.35505826,61971.0,61970.0,0.0004]
[1728188976201,1.01877691,61971.0,61970.0,0.0004]
[1728188976391,1.07665826,61971.0,61970.0,0.0004]
[1728188979604,0.064552,61968.0,61967.0,0.0004]
[1728188979799,0.18517991,61968.0,61967.0,0.0004]
[1728188980505,0.064952,61968.0,61967.0,0.11359534]
[1728188980894,0.065952,61968.0,61967.0,0.11359534]
[1728188981400,0.175952,61968.0,61967.0,0.11359534]
[1728188982906,0.176952,61968.0,61967.0,0.11359534]
[1728188983199,0.176952,61968.0,61967.0,0.11361829]
[1728188985893,0.537752,61968.0,61967.0,0.11361829]
[1728188987306,0.65798017,61968.0,61967.0,0.0004]
[1728188988203,0.65798021,61968.0,61967.0,0.0004]
[1728188992009,0.29718021,61968.0,61967.0,0.0004]
[1728188992211,0.65798021,61968.0,61967.0,0.0004]
[1728188993103,0.65798058,61968.0,61967.0,0.0004]
[1728188995410,0.537752,61968.0,61967.0,0.11360282]
[1728188998300,0.176952,61968.0,61967.0,0.11360282]
[1728188998505,0.537752,61968.0,61967.0,0.11360282]
[1728189002413,0.65798064,61968.0,61967.0,0.0004]
[1728189005810,0.29718064,61968.0,61967.0,0.0004]
[1728189006005,0.65798064,61968.0,61967.0,0.0004]
[1728189006420,0.65798067,61968.0,61967.0,0.0004]
[1728189008119,0.54798067,61968.0,61967.0,0.0004]
[1728189008419,0.65798067,61968.0,61967.0,0.0004]
[1728189010519,0.176952,61968.0,61967.0,0.11362463]
[1728189010827,0.537752,61968.0,61967.0,0.11362463]
[1728189011223,0.537752,61968.0,61967.0,0.11362466]
[1728189016018,0.537752,61968.0,61967.0,0.11355123]
[1728189017533,0.537752,61968.0,61967.0,0.06498067]
[1728189025533,0.45862359,61968.0,61967.0,0.0004]
[1728189025932,0.81942359,61968.0,61967.0,0.0004]
[1728189027436,0.45862359,61968.0,61967.0,0.0004]
[1728189027621,0.81942359,61968.0,61967.0,0.0004]
[1728189029336,0.65797676,61968.0,61967.0,0.0004]
[1728189029636,0.29717676,61968.0,61967.0,0.0004]
[1728189029842,0.65797676,61968.0,61967.0,0.0004]
[1728189030629,0.29717676,61968.0,61967.0,0.0004]
[1728189030829,0.65797676,61968.0,61967.0,0.0004]